[Event "MPL-4 Indian Chess Tour 2022"]
[Site "Chess24"]
[Date "2022.09.27"]
[Round "7.2"]
[White "Sethuraman, S.P."]
[Black "Puranik, Abhimanyu"]
[Result "1-0"]
[ECO "C54"]
[WhiteElo "2638"]
[BlackElo "2603"]
[Annotator "TA"]
[PlyCount "115"]
[EventDate "2022.09.29"]
[EventType "tourn (rapid)"]
[EventCountry "NET"]
[SourceTitle "playchess.com"]
[Source "ChessBase"]
[SourceQuality "1"]
[WhiteTeam "India"]
[BlackTeam "India"]
[WhiteTeamCountry "IND"]
[BlackTeamCountry "IND"]
[TimeControl "900+10"]

{[%evp 10,115,23,19,8,9,10,20,18,9,13,14,18,12,8,17,30,25,20,29,33,17,23,18,34,-14,0,-22,17,0,0,0,8,0,0,-16,-16,0,0,-55,0,0,0,0,2,0,0,0,0,0,156,156,172,170,156,156,155,118,155,69,78,37,41,47,44,39,71,0,0,0,0,0,0,0,0,0,5,0,0,0,0,0,27,0,24,19,93,92,223,235,331,323,1133,888,1254,806,5335,303,29987,29985,29991,29982,1756,805,29989,29990,29996,29997]} 1. e4 {[%emt 0:00:00]} e5 {[%emt 0:00:00]} 2. Nf3 {[%emt 0:00:01]} Nc6 {[%emt 0:00:02]} 3. Bc4 {[%emt 0:00:01]} Bc5 {[%emt 0:00:02]} 4. d3 {[%emt 0:00:01]} Nf6 {[%emt 0:00:02]} 5. c3 {[%emt 0:00:00]} d6 {[%emt 0:00:01]} 6. O-O {[%emt 0:00:05]} a5 {[%emt 0:00:03] C54: Giuoco Piano: 4 c3 Nf6, main lines with 5 d4 and 5 d3.} 7. Re1 {[%emt 0:00:05]} h6 {[%emt 0:00:10]} 8. Nbd2 {[%emt 0:00:03][%cal Bb1d2,Bd2f1,Bf1g3][%mdl 32]} O-O {[%emt 0:00:01] The position is equal.} 9. Nf1 {[%emt 0:00:02]} Be6 {[%emt 0:00:06]} 10. Bb5 {[%emt 0:00:04]} Bb6 {[%emt 0:01:19]} 11. Ng3 {[%emt 0:00:20]} Ne7 {[%emt 0:00:50]} 12. d4 {[%emt 0:00:02]} c6 {[%emt 0:00:09]} 13. Bd3 {[%emt 0:00:03]} Ng6 {[%emt 0:00:02]} 14. h3 {[%emt 0:00:25] Inhibits Bg4.} a4 {[%emt 0:00:06]} 15. Be3 {[%emt 0:00:05]} Re8 {[%emt 0:00:05]} 16. Bc2 {[%emt 0:00:09]} a3 {[%emt 0:00:10]} 17. b4 {[%emt 0:00:09] [#]} (17. b3 $14 {is superior.}) 17... Bc7 $146 {[%emt 0:01:36]} ({Predecessor:} 17... Qc7 18. Qd2 Kh7 19. Nf5 exd4 20. Bxh6 dxc3 21. Qg5 Nxe4 22. Rxe4 Bxf5 23. Bxg7 Kxg7 24. Qxf5 Rxe4 25. Qxe4 {½-½ (68) Ragger,M (2687)-Anton Guijarro,D (2642) Skopje 2018}) 18. Qd2 {[%emt 0:00:34]} Qe7 {[%emt 0:00:26]} (18... Bc4 {with more complications.} 19. Nf5 d5 20. dxe5 Nxe4 21. Qd4 Re6) 19. Nf5 {[%emt 0:00:22]} Bxf5 {[%emt 0:00:23]} 20. exf5 {[%emt 0:00:01]} Nf8 {[%emt 0:00:01]} 21. dxe5 {[%emt 0:01:21]} dxe5 {[%emt 0:00:03]} 22. c4 {[%emt 0:00:05]} Rad8 {[%emt 0:01:55]} 23. Qc3 {[%emt 0:04:13]} e4 {[%emt 0:00:02]} 24. Nd4 {[%emt 0:02:00]} (24. Bc5 $1 $11 Qd7 25. Rad1 Qxf5 26. Rxd8 Bxd8 27. Nd2 (27. Qxa3 Bc7 $11) (27. Nd4 Qe5 $15)) 24... Be5 {[%emt 0:00:36]} (24... Qe5 $15 25. g3 N8h7) 25. Rad1 {[%emt 0:00:03]} c5 {[%emt 0:00:21]} 26. bxc5 {[%emt 0:00:02]} Qxc5 {[%emt 0:00:01]} 27. Ba4 {[%emt 0:01:50]} Nd5 $1 {[%emt 0:00:35]} 28. Qb3 {[%emt 0:01:41]} Nxe3 {[%emt 0:00:05]} 29. fxe3 {[%emt 0:00:01]} b5 $2 {[%emt 0:02:52]} (29... Re7 $11) 30. Bxb5 $16 {[%emt 0:01:47]} Rb8 {[%emt 0:00:36]} 31. Nc6 {[%emt 0:00:19] Threatens to win with Rd5.} Bg3 {[%emt 0:00:02]} 32. Nxb8 {[%emt 0:01:17]} Rxb8 {[%emt 0:00:00] [#]} 33. Rd5 $1 {[%emt 0:00:08]} Qe7 {[%emt 0:00:49]} 34. Rf1 {[%emt 0:00:48]} (34. Red1 $16) 34... Nh7 $1 $14 {[%emt 0:00:01]} 35. Qd1 {[%emt 0:00:59] Hoping for Rd7.} Nf6 {[%emt 0:00:16] Prevents Rd7.} 36. Rd4 {[%emt 0:00:01]} h5 {[%emt 0:00:24]} 37. Qd2 {[%emt 0:00:32]} h4 {[%emt 0:00:01] [#]} 38. Rd1 {[%emt 0:00:01]} (38. Rb1 $1 $16) 38... Bc7 $1 $11 {[%emt 0:00:01]} 39. Qf2 {[%emt 0:00:09]} Bg3 {[%emt 0:00:13]} 40. Qd2 {[%emt 0:00:01]} Bc7 {[%emt 0:00:55] Prevents Rd8+.} 41. Qe1 {[%emt 0:00:31]} Bg3 {[%emt 0:01:05]} 42. Qc3 {[%emt 0:00:10]} Bc7 {[%emt 0:01:46]} 43. R4d2 {[%emt 0:00:19]} Qc5 {[%emt 0:00:14]} 44. Rd5 {[%emt 0:01:09]} Nxd5 {[%emt 0:00:35]} 45. Rxd5 {[%emt 0:00:00]} Qb6 {[%emt 0:00:15]} 46. Qxa3 {[%emt 0:00:11]} Bg3 {[%emt 0:00:18]} 47. Qc3 {[%emt 0:00:15]} Ra8 {[%emt 0:00:11]} (47... Rd8 $11 {keeps the balance.} 48. a4 Qc7) 48. a4 $16 {[%emt 0:00:03] c5 is the strong threat.} Qh6 {[%emt 0:00:17] A mistake that costs the game.} (48... Rd8 $16 {was called for.}) 49. c5 $18 {[%emt 0:00:10]} Bc7 {[%emt 0:00:13]} (49... Qg5 {keeps fighting.} 50. Qd4 Bc7 51. Qxe4 Rd8 52. Rxd8+ Qxd8) 50. Rd7 {[%emt 0:00:16]} Ra7 {[%emt 0:00:28]} (50... Ba5 51. Qd4 Qf6) 51. Qd4 {[%emt 0:00:20] aiming for c6.} Qg5 {[%emt 0:00:05]} 52. Qxe4 {[%emt 0:00:06]} Qg3 {[%emt 0:00:06]} 53. Kf1 $2 {[%emt 0:00:13]} (53. f6 {Threatening mate with Qe8+.} g6 54. Kf1) 53... Qh2 $2 {[%emt 0:00:03]} (53... Ba5 $18 54. Rd1 Qg5) 54. Ke2 {[%emt 0:00:08]} Qg1 {[%emt 0:00:26]} 55. Rd1 {[%emt 0:00:03]} Qh2 {[%emt 0:00:02]} 56. Bc4 {[%emt 0:00:24]} Rxa4 {[%emt 0:00:02] [#]} 57. Bxf7+ $1 {[%emt 0:00:15][%mdl 512]} Kxf7 {[%emt 0:00:11]} (57... Kh7 58. Qxa4) 58. Rd7+ {[%emt 0:00:04] Weighted Error Value: White=0.23 (precise) /Black=0.38} 1-0

[Event "MPL-4 Indian Chess Tour 2022"]
[Site "Chess24"]
[Date "2022.09.27"]
[Round "7.3"]
[White "Mitrabha, Guha"]
[Black "Pranav, V."]
[Result "1/2-1/2"]
[ECO "E04"]
[WhiteElo "2471"]
[BlackElo "2530"]
[Annotator "TA"]
[PlyCount "113"]
[EventDate "2022.09.29"]
[EventType "tourn (rapid)"]
[EventCountry "NET"]
[SourceTitle "playchess.com"]
[Source "ChessBase"]
[SourceQuality "1"]
[WhiteTeam "India"]
[BlackTeam "India"]
[WhiteTeamCountry "IND"]
[BlackTeamCountry "IND"]
[TimeControl "900+10"]

{[%evp 11,113,20,31,9,22,18,25,0,0,0,0,0,0,0,0,-14,0,-29,-41,-38,-36,-36,-36,-36,-44,-45,-52,-35,-2,-98,-92,-107,-97,-109,-81,-110,-82,-114,-136,-456,-455,-459,-459,-455,-443,-427,-412,-697,-375,-417,-375,-375,-354,-428,-339,-526,-526,-522,-497,-590,-572,-543,-553,-520,-423,-414,-387,-354,-257,-401,0,0,0,-153,20,0,0,0,0,-71,-71,-70,-68,-66,0,0,0,0,0,0,0,0,0,0,0,0,0,0,0,0,0,0,0,0]} 1. d4 {[%emt 0:00:00]} d5 {[%emt 0:00:00][%cal Bd7d5,Bd5c4][%mdl 32]} 2. c4 {[%emt 0:00:03]} e6 {[%emt 0:00:01]} 3. Nf3 {[%emt 0:00:02]} Nf6 {[%emt 0:00:01]} 4. g3 {[%emt 0:00:01]} dxc4 {[%emt 0:00:01]} 5. Bg2 {[%emt 0:00:08]} a6 {[%emt 0:00:01]} 6. O-O {[%emt 0:00:25]} Nc6 {[%emt 0:00:04]} 7. Nbd2 {[%emt 0:00:21][%cal Bb1d2,Bd2f3,Bf3e5][%mdl 32] E04: Open Catalan: 5 Nf3.} b5 {[%emt 0:00:09]} (7... Nxd4 {feels hotter.} 8. Nxc4 Nc6 9. Nfe5 Qxd1 10. Bxc6+ Qd7) 8. b3 {[%emt 0:00:18]} (8. Ne5 {feels hotter.} Nxe5 9. Bxa8 Qxd4 10. Ne4) 8... Rb8 {[%emt 0:05:19]} 9. bxc4 {[%emt 0:00:04] White has an edge.} (9. Bb2 {seems wilder.} cxb3 10. Qc1 Bb7 11. Nxb3 Bd6 12. Nfd2) 9... Nxd4 {[%emt 0:00:11] [#]} 10. cxb5 $146 {[%emt 0:02:08]} ({Predecessor:} 10. Bb2 Nxf3+ 11. Bxf3 Bb4 12. Ne4 Qxd1 13. Rfxd1 Nxe4 14. Bxe4 f6 15. Bc6+ Ke7 16. cxb5 axb5 {0-1 (70) Sai Agni,J (2322)-Sethuraman,S (2644) Biel 2021}) 10... Nxf3+ {[%emt 0:00:51]} 11. Nxf3 {[%emt 0:00:02]} Qxd1 {[%emt 0:00:17]} 12. Rxd1 {[%emt 0:00:01]} axb5 {[%emt 0:00:00]} 13. Ne5 {[%emt 0:00:28]} Bb7 {[%emt 0:01:56]} 14. Bxb7 {[%emt 0:02:45]} Rxb7 {[%emt 0:00:02]} 15. Nc6 {[%emt 0:00:01][%csl Gc6][%cal Rd1d8] [#]} Bd6 {[%emt 0:00:49]} 16. Bf4 {[%emt 0:00:12]} Nd5 {[%emt 0:01:12]} 17. Bxd6 {[%emt 0:00:23]} cxd6 {[%emt 0:00:00]} 18. e4 $1 {[%emt 0:00:03]} Nc3 {[%emt 0:00:01][%csl LRd1,LRe4]} 19. Rxd6 {[%emt 0:00:04][%csl Gc6][%cal Rd6d8]} Rd7 {[%emt 0:01:06] Prevents Rd8+.} (19... O-O $5 {[%cal Rc3e4]}) 20. Rxd7 {[%emt 0:02:47]} (20. e5 $11) 20... Kxd7 $11 {[%emt 0:00:03][%mdl 4096] Endgame KRN-KRN} 21. Ne5+ {[%emt 0:00:01]} Ke7 {[%emt 0:00:01]} 22. f3 {[%emt 0:00:01]} Ra8 {[%emt 0:00:39]} 23. a3 {[%emt 0:00:11]} f6 {[%emt 0:01:48]} 24. Nc6+ {[%emt 0:00:11]} Kd6 {[%emt 0:00:04]} 25. Nd4 {[%emt 0:00:02][%mdl 8192]} (25. Nb4 $17 {was the crucial defense.}) 25... b4 $1 $19 {[%emt 0:00:38]} 26. Kf2 {[%emt 0:01:43]} Rxa3 {[%emt 0:00:45]} 27. Rc1 {[%emt 0:00:03]} Ra2+ {[%emt 0:00:03]} 28. Ke3 {[%emt 0:00:01]} e5 {[%emt 0:00:29]} 29. Nb3 {[%emt 0:00:06]} (29. Nc2 $142 b3 30. Nb4) 29... Rxh2 {[%emt 0:00:08]} 30. Nd2 {[%emt 0:00:02]} Kc5 {[%emt 0:00:12]} 31. Ra1 {[%emt 0:00:02]} h5 {[%emt 0:00:14]} 32. Ra7 {[%emt 0:00:04]} g5 {[%emt 0:00:01]} 33. Rc7+ {[%emt 0:00:06]} (33. Kd3 $142) 33... Kd6 {[%emt 0:00:25] White must now prevent ...Re2+.} 34. Rb7 {[%emt 0:00:22]} Na2 {[%emt 0:00:03] ( -> ...Nc1)} 35. Nb3 {[%emt 0:01:18] Prevents Nc1.} h4 {[%emt 0:00:51]} 36. gxh4 {[%emt 0:00:04]} gxh4 {[%emt 0:00:00]} 37. Rb6+ {[%emt 0:00:02]} Ke7 {[%emt 0:00:03] ...Rc2 is the strong threat.} 38. Rb7+ {[%emt 0:00:03]} Kf8 {[%emt 0:00:09]} 39. Nc5 {[%emt 0:00:05]} Ke8 {[%emt 0:01:14] Hoping for ...Rc2.} 40. Nd7 {[%emt 0:00:39]} (40. Rb8+ {was necessary.} Ke7 41. Nd3) 40... b3 $2 {[%emt 0:00:18]} (40... Kd8 $19 41. Nxf6 Nc1) 41. Nxf6+ $11 {[%emt 0:00:06]} Kd8 {[%emt 0:00:02]} 42. Ng4 $2 {[%emt 0:00:15] [#]} (42. Rb8+ $1 $11 Ke7 43. Nd5+ (43. Ng4 Rb2 $17) 43... Kd6 44. Rb6+ Kc5 45. Rxb3) 42... Rg2 $2 {[%emt 0:00:39]} (42... Rb2 $1 $17 {Strongly threatening ...Kc8.} 43. Nxe5 h3 44. Nf7+ Ke8 45. Nd6+ Kd8 46. Nf7+ Ke8 47. Nd6+ Kd8 48. Nf7+) 43. Nxe5 {[%emt 0:00:33]} ({But not} 43. Rxb3 $2 Nc1 44. Rb8+ Kc7 45. Nxe5 Kxb8 $19) 43... b2 {[%emt 0:00:39] And now ...h3 would win.} (43... Nc1 $5 44. Nf7+ $8 Kc8 45. Nd6+ Kd8 46. Nf7+ Kc8 47. Nd6+ Kd8 48. Nf7+ $11) 44. Nf7+ $1 {[%emt 0:00:02]} Ke8 {[%emt 0:00:07]} (44... Kc8 $5 45. Nd6+ $8 Kd8 46. Nf7+ (46. Nc4 h3 $17) 46... Ke8 47. Nd6+ Kf8 48. Rb8+ Ke7 49. Nf5+ Kd7 50. Nxh4 Rh2 $11) 45. e5 {[%emt 0:00:02]} (45. Nd6+ $11 {remains equal.} Kf8 46. Rb8+ Ke7 47. Nf5+ Kd7 48. Nxh4) 45... Nc3 $17 {[%emt 0:00:19]} 46. Nd6+ {[%emt 0:00:01]} Kf8 $1 {[%emt 0:00:21]} 47. e6 $1 {[%emt 0:00:01] Intending e7+ and mate.} Re2+ {[%emt 0:00:23]} ({Don't play} 47... Rg7 48. Rb8+ Ke7 49. Nf5+ Kxe6 50. Nxg7+ $11) ({Black should try} 47... Nd5+ $15 48. Kd4 Ne7) 48. Kd3 $11 {[%emt 0:00:24] The position is equal.} Rxe6 {[%emt 0:00:15]} 49. Kxc3 {[%emt 0:00:01]} Rxd6 {[%emt 0:00:01]} 50. Rxb2 {[%emt 0:00:01] KR-KR} Rf6 {[%emt 0:00:03]} 51. Rh2 {[%emt 0:00:07]} Rxf3+ {[%emt 0:00:02]} 52. Kd4 {[%emt 0:00:01]} h3 {[%emt 0:00:01]} 53. Ke4 {[%emt 0:00:01]} Ra3 {[%emt 0:00:01]} 54. Kf4 {[%emt 0:00:01]} Kf7 {[%emt 0:00:01]} 55. Kg4 {[%emt 0:00:00]} Kf6 {[%emt 0:00:00]} 56. Rxh3 {[%emt 0:00:01]} Rxh3 {[%emt 0:00:01]} 57. Kxh3 {[%emt 0:00:00] And White is the lucky defender.  Weighted Error Value: White=0.42/Black=0.35} 1/2-1/2

[Event "MPL-4 Indian Chess Tour 2022"]
[Site "Chess24"]
[Date "2022.09.27"]
[Round "7.4"]
[White "Vaibhav, Suri"]
[Black "Karthikeyan, Murali"]
[Result "1/2-1/2"]
[ECO "C47"]
[WhiteElo "2600"]
[BlackElo "2623"]
[Annotator "TA"]
[PlyCount "73"]
[EventDate "2022.09.29"]
[EventType "tourn (rapid)"]
[EventCountry "NET"]
[SourceTitle "playchess.com"]
[Source "ChessBase"]
[SourceQuality "1"]
[WhiteTeam "India"]
[BlackTeam "India"]
[WhiteTeamCountry "IND"]
[BlackTeamCountry "IND"]
[TimeControl "900+10"]

{[%evp 16,73,0,3,6,0,6,8,6,6,7,6,6,5,3,9,5,10,83,83,91,53,107,66,70,67,68,68,73,75,93,85,106,106,106,8,8,0,2,0,0,0,0,0,0,0,0,0,0,0,0,0,0,0,8,0,0,0,8,0]} 1. e4 {[%emt 0:00:00]} e5 {[%emt 0:00:00]} 2. Nf3 {[%emt 0:00:02]} Nc6 {[%emt 0:00:01]} 3. Nc3 {[%emt 0:00:00]} Nf6 {[%emt 0:00:05]} 4. d4 {[%emt 0:00:02]} exd4 {[%emt 0:00:02]} 5. Nxd4 {[%emt 0:00:00]} Bb4 {[%emt 0:00:09]} 6. Nxc6 {[%emt 0:00:02]} bxc6 {[%emt 0:00:00]} 7. Bd3 {[%emt 0:00:01][%cal Bf1d3,Bd3e4,Be4c6][%mdl 32]} d5 {[%emt 0:00:04]} 8. Bd2 {[%emt 0:00:01]} O-O {[%emt 0:00:20]} 9. O-O {[%emt 0:00:04]} Bxc3 {[%emt 0:00:29] C47: Scotch Four Knights and Four Knights with 4 g3.} (9... Rb8 {is more complex.} 10. Re1 Re8 11. exd5 Rxe1+ 12. Qxe1 cxd5 13. a3 Bf8) 10. Bxc3 {[%emt 0:00:02]} dxe4 $1 {[%emt 0:02:07][%mdl 4] is currently scoring better than 10...Nxe4.} 11. Bxf6 {[%emt 0:00:04][%mdl 64] [#] Remove Defender} Qxf6 {[%emt 0:00:00]} 12. Bxe4 {[%emt 0:00:00]} Qxb2 {[%emt 0:00:01]} 13. Bxc6 {[%emt 0:00:07]} Rb8 {[%emt 0:00:53]} (13... Ba6 {looks sharper.} 14. Rb1 Qf6 15. Bxa8 Bxf1 16. Qf3 Bc4) 14. Rb1 {[%emt 0:00:02]} Qxb1 {[%emt 0:00:01]} 15. Qxb1 {[%emt 0:00:01]} Rxb1 {[%emt 0:00:00]} 16. Rxb1 $11 {[%emt 0:00:00][%mdl 4096] [#] Endgame KRB-KRB} Bf5 $146 {[%emt 0:00:04]} (16... Rd8 $11 {keeps the balance.}) ({Predecessor:} 16... Rd8 17. Bf3 Bf5 18. Rb7 Bxc2 19. Rxc7 Be4 20. Be2 g5 21. h3 a5 22. Ra7 Ra8 {½-½ (37) Andreikin,D (2724)-Rapport,R (2762) Belgrade 2022}) 17. Rb7 $16 {[%emt 0:01:35][%csl LRa7,LRc7]} Rd8 {[%emt 0:00:06][%cal Rd8d1] [#]} 18. h3 {[%emt 0:01:01]} h5 {[%emt 0:04:28]} ({Better is} 18... g5 $14) 19. Rxa7 {[%emt 0:02:42]} Rd1+ {[%emt 0:00:26]} 20. Kh2 {[%emt 0:00:02]} Rd2 {[%emt 0:00:02]} 21. c4 {[%emt 0:04:41]} ({Much weaker is} 21. Rxc7 Rxc2 22. a4 Rc5 $11) 21... Rxf2 {[%emt 0:01:13]} 22. a4 {[%emt 0:00:02]} ({Of course not} 22. Rxc7 Rxa2 23. Bd5 Be6 $11) 22... Rc2 {[%emt 0:01:10]} 23. Bd5 {[%emt 0:00:01]} Ra2 {[%emt 0:01:46]} 24. Rxc7 {[%emt 0:00:21]} Be6 {[%emt 0:00:14]} 25. Bc6 {[%emt 0:02:10]} (25. Bxe6 $16 fxe6 26. Ra7) 25... g5 {[%emt 0:00:23] The position is equal.} 26. c5 {[%emt 0:00:44]} Ra3 {[%emt 0:00:45]} 27. Bb5 {[%emt 0:03:43]} g4 {[%emt 0:01:27]} 28. hxg4 {[%emt 0:00:01]} hxg4 {[%emt 0:00:00] ( -> ...g3+)} 29. g3 {[%emt 0:00:08]} Ra2+ {[%emt 0:02:01]} 30. Kg1 {[%emt 0:00:02]} Ra3 {[%emt 0:00:02]} 31. Kf2 {[%emt 0:00:57]} Ra2+ {[%emt 0:00:31]} 32. Kf1 {[%emt 0:00:48]} Ra1+ {[%emt 0:00:20]} 33. Ke2 {[%emt 0:00:06]} Ra2+ {[%emt 0:00:24]} 34. Ke1 {[%emt 0:00:40] Re7 is the strong threat.} Ra1+ {[%emt 0:00:05]} 35. Ke2 {[%emt 0:00:23] Threatens to win with Re7.} Ra2+ {[%emt 0:00:05]} 36. Ke1 {[%emt 0:00:18] Black must now prevent Re7.} Ra1+ {[%emt 0:00:01]} 37. Ke2 {[%emt 0:00:12] Weighted Error Value: White=0.13 (very precise) /Black=0.08 (flawless)} 1/2-1/2

[Event "MPL-4 Indian Chess Tour 2022"]
[Site "Chess24"]
[Date "2022.09.27"]
[Round "7.5"]
[White "Bharath Subramaniyam H"]
[Black "Adhiban, B.."]
[Result "0-1"]
[ECO "A20"]
[WhiteElo "2495"]
[BlackElo "2603"]
[Annotator "TA"]
[PlyCount "164"]
[EventDate "2022.09.29"]
[EventType "tourn (rapid)"]
[EventCountry "NET"]
[SourceTitle "playchess.com"]
[Source "ChessBase"]
[SourceQuality "1"]
[WhiteTeam "India"]
[BlackTeam "India"]
[WhiteTeamCountry "IND"]
[BlackTeamCountry "IND"]
[TimeControl "900+10"]

{[%evp 9,164,0,11,10,24,18,21,4,19,13,13,24,21,-10,13,8,30,11,10,14,0,6,1,0,110,-1,0,-76,-88,-85,-74,-77,82,87,116,81,116,116,106,28,32,27,30,13,26,22,43,56,62,44,66,0,0,0,189,0,133,133,171,157,157,157,144,175,162,129,131,18,118,0,0,0,0,0,0,-165,-133,-137,-144,-145,-147,-152,-141,-164,-169,-213,-125,-118,-119,-114,0,-117,-102,-108,-104,-102,-29,-88,-39,-59,-48,-130,0,-25,0,-93,-76,-395,-394,-593,-584,-607,-607,-580,-580,-466,-433,-902,-857,-1429,-1370,-29949,-9275,-29970,-29971,-29971,0,-29965,-29967,-29966,-29966,-29964,-29966,-29966,-29961,-29969,-29969,-29976,-29971,-29976,-29977,-29977,-29978,-29978,-29979,-29979,-29980,-29980,-29981,-29981,-29982,-29982,-29983,-29983,-29984,-29985,-29985]} 1. c4 {[%emt 0:00:00]} e5 {[%emt 0:00:00][%cal Be7e5,Be5e4][%mdl 32]} 2. Nf3 {[%emt 0:00:09]} e4 {[%emt 0:00:03]} 3. Nd4 {[%emt 0:00:03]} Nc6 {[%emt 0:00:01]} 4. e3 {[%emt 0:00:01]} Nf6 {[%emt 0:00:27]} 5. Nc3 {[%emt 0:00:04]} Bb4 {[%emt 0:00:01]} 6. Qb3 {[%emt 0:00:13] A20: English Opening: 1...e5.} Bc5 {[%emt 0:01:15] 6...a5 injects fresh life into this line.} 7. Nde2 {[%emt 0:00:20]} O-O {[%emt 0:00:03]} 8. Ng3 {[%emt 0:00:03] The position is equal.} Re8 {[%emt 0:00:03]} 9. a3 {[%emt 0:00:23]} b6 {[%emt 0:05:52]} 10. Qc2 {[%emt 0:00:53]} Bb7 {[%emt 0:00:02] [#]} 11. b4 $146 {[%emt 0:01:39]} ({Predecessor:} 11. Be2 Ne5 12. O-O Bf8 13. b4 c5 14. bxc5 Rc8 15. Bb2 Rxc5 16. Ncxe4 Nxe4 17. Nxe4 {½-½ (43) Cardoso,S (2166)-Permykov,A (2370) LSS email 2017}) 11... Bf8 {[%emt 0:00:22]} 12. Bb2 {[%emt 0:00:10]} a5 {[%emt 0:00:01]} 13. b5 {[%emt 0:00:17]} Ne5 {[%emt 0:00:02]} 14. Ncxe4 {[%emt 0:02:27]} Nxe4 {[%emt 0:00:03]} 15. Nxe4 {[%emt 0:00:02]} d5 {[%emt 0:00:01]} 16. cxd5 {[%emt 0:01:45]} Qxd5 {[%emt 0:00:03]} (16... Bxd5 $11 17. h4 h6) 17. Nc3 {[%emt 0:00:39]} (17. Ng5 $16 {[%csl Gg5][%cal Rc2h7]} Nd3+ 18. Bxd3 Qxg5 19. Bxh7+ Kh8 20. Bd3) 17... Qe6 $11 {[%emt 0:00:05]} 18. O-O-O {[%emt 0:01:32]} (18. Ne2 $11 {keeps the balance.}) 18... Nc4 $17 {[%emt 0:01:26]} 19. Qb3 {[%emt 0:01:11]} Nxb2 {[%emt 0:00:05]} 20. Qxe6 {[%emt 0:00:41]} Nxd1 $2 {[%emt 0:00:12]} ({Much worse is} 20... Rxe6 21. Kxb2 Bd6 22. h4 $11) (20... Nd3+ $1 $17 {keeps the pressure on.} 21. Bxd3 Bxa3+ 22. Kc2 Rxe6) 21. Qa2 $16 {[%emt 0:01:14]} Nxf2 {[%emt 0:00:12]} 22. Rg1 $36 {[%emt 0:00:59][%mdl 2048] White is on the roll.} Rad8 {[%emt 0:01:04]} 23. Bc4 {[%emt 0:00:20]} Nd3+ {[%emt 0:00:04]} 24. Bxd3 {[%emt 0:00:32]} (24. Kb1 $1 $16 Rd7 25. Rf1) 24... Rxd3 $11 {[%emt 0:00:00]} 25. Rf1 {[%emt 0:00:01]} Rd7 {[%emt 0:00:30] Active counter play!} 26. Rf2 {[%emt 0:00:05]} g6 {[%emt 0:00:31]} 27. a4 {[%emt 0:00:24]} Bg7 {[%emt 0:00:14] This bishop pair is nice.} 28. Qc4 {[%emt 0:00:14]} Re5 {[%emt 0:00:03]} 29. Qg4 {[%emt 0:00:38]} Rde7 {[%emt 0:00:22]} 30. Rf4 {[%emt 0:00:32]} (30. Qd4 $14) 30... h5 {[%emt 0:00:05]} 31. Qe2 {[%emt 0:00:32]} Rg5 $2 {[%emt 0:02:17]} (31... Bh6 $1 $11 32. Rf2 Rxe3 $1 33. dxe3 Rxe3) 32. g3 $2 {[%emt 0:00:37]} (32. Qd3 $18) 32... Rge5 {[%emt 0:00:45]} (32... Bxc3 $11 33. dxc3 Rge5) 33. Qd3 $16 {[%emt 0:00:16]} Re8 {[%emt 0:00:17] Against Qd8} 34. Rc4 {[%emt 0:00:16]} R5e7 {[%emt 0:01:57]} 35. Nd5 {[%emt 0:00:07]} Bxd5 {[%emt 0:00:01]} 36. Qxd5 {[%emt 0:00:01]} Be5 {[%emt 0:00:01]} 37. Kc2 {[%emt 0:00:09]} Bd6 {[%emt 0:00:03]} 38. Rc6 {[%emt 0:00:44]} (38. g4 $16) 38... Re5 {[%emt 0:00:05]} (38... Re4 $11) 39. Qd4 {[%emt 0:00:14]} ({White should play} 39. Qd3 $1 $16) 39... Re4 $11 {[%emt 0:00:03]} 40. Qa1 {[%emt 0:00:23]} h4 {[%emt 0:00:01]} 41. gxh4 {[%emt 0:00:15]} Rxh4 {[%emt 0:00:00]} 42. Qf6 $2 {[%emt 0:00:33]} (42. h3 $11) 42... Rxa4 $19 {[%emt 0:00:07]} 43. Rxd6 {[%emt 0:00:03]} cxd6 {[%emt 0:00:03]} 44. Qxd6 {[%emt 0:00:00][%mdl 4096] Endgame KQ-KRR} Re6 {[%emt 0:00:14]} 45. Qd8+ {[%emt 0:00:14]} Kg7 {[%emt 0:00:01]} 46. h4 {[%emt 0:00:24][%cal Oh4h5]} Rc4+ {[%emt 0:00:16]} 47. Kd1 {[%emt 0:00:09][%cal Oh4h5]} Rc5 {[%emt 0:00:07]} (47... Rf6 $19 48. h5 gxh5) 48. Qd4+ $17 {[%emt 0:00:07]} Kh7 {[%emt 0:00:10]} 49. Qd7 {[%emt 0:00:05]} Kg7 {[%emt 0:00:05]} (49... Rf5 $1 $17 {White must now prevent ...Ree5.} 50. Qc7 Ref6) 50. Ke2 {[%emt 0:00:18]} (50. Qd4+ $11 Kh7 51. Qd7) 50... Ree5 {[%emt 0:00:53] Threatens to win with ...Red5.} 51. d4 {[%emt 0:00:17]} Rcd5 {[%emt 0:00:25]} 52. Qc7 {[%emt 0:00:18]} Re6 {[%emt 0:00:06]} (52... Rh5 $17 53. Qxb6 Rxb5) 53. Qc4 $11 {[%emt 0:00:02] [#]} Red6 {[%emt 0:01:13]} (53... Rd7 $1 $17 {[%cal Rd7e7] ...Rde7 is the strong threat.} 54. Kd2 Rde7) 54. Qc7 {[%emt 0:00:10]} Rf6 {[%emt 0:00:07]} 55. Qc4 {[%emt 0:00:09]} Rfd6 {[%emt 0:00:38]} (55... Rh5 $17 56. d5 a4) 56. Qc7 {[%emt 0:00:02]} Re6 {[%emt 0:00:11]} ({Better is} 56... a4 $11) 57. Qc4 $17 {[%emt 0:00:02] [#]} Rd7 {[%emt 0:00:13]} 58. d5 $2 {[%emt 0:00:16][%mdl 8192]} (58. Kd2 $17 {is a better chance.}) 58... Re5 $19 {[%emt 0:00:01]} 59. Qd4 {[%emt 0:00:24]} (59. h5 {is the only way for White.} gxh5 60. Qd4 Rdxd5 61. Qxb6) 59... Rdxd5 {[%emt 0:00:04]} 60. Qxb6 {[%emt 0:00:00]} Rxb5 {[%emt 0:00:01]} 61. Qd4 {[%emt 0:00:01]} Rbd5 {[%emt 0:00:11]} 62. Qa1 {[%emt 0:00:24]} Kg8 {[%emt 0:00:08]} 63. Kf3 {[%emt 0:00:16] Inhibits Re4.} (63. Qa4 $142) 63... Re8 {[%emt 0:00:24] Hoping for ...Rd3.} 64. Qa4 {[%emt 0:00:14]} Rde5 {[%emt 0:00:04]} 65. Kf2 {[%emt 0:00:01]} Rxe3 {[%emt 0:00:49] ( -> ...Re2+)} 66. Qxa5 {[%emt 0:00:04]} Re2+ {[%emt 0:00:05]} 67. Kf3 {[%emt 0:00:17]} R2e3+ {[%emt 0:00:02]} 68. Kf2 $1 {[%emt 0:00:03]} R3e5 {[%emt 0:00:01] Black mates.} 69. Qa4 {[%emt 0:00:07]} Re2+ {[%emt 0:00:09]} 70. Kf1 {[%emt 0:00:13]} R2e4 {[%emt 0:00:02]} 71. Qd7 {[%emt 0:00:06]} R8e5 {[%emt 0:00:11]} 72. Qc8+ {[%emt 0:00:10]} Kg7 {[%emt 0:00:05]} 73. Qc3 {[%emt 0:00:06]} Kh7 {[%emt 0:00:05]} 74. Kg2 {[%emt 0:00:16]} Re2+ {[%emt 0:00:07]} 75. Kf1 {[%emt 0:00:29]} Re1+ {[%emt 0:00:01]} 76. Kg2 {[%emt 0:00:02]} R5e2+ {[%emt 0:00:01]} 77. Kf3 {[%emt 0:00:01]} Re3+ {[%emt 0:00:01]} 78. Qxe3 {[%emt 0:00:01]} Rxe3+ {[%emt 0:00:01]} 79. Kxe3 {[%emt 0:00:00]} Kh6 {[%emt 0:00:01]} 80. Kf3 {[%emt 0:00:01]} Kh5 {[%emt 0:00:00]} 81. Kg3 {[%emt 0:00:01]} f5 {[%emt 0:00:01][%cal Bf7f5,Bf5f4][%mdl 32]} 82. Kh3 {[%emt 0:00:08]} f4 {[%emt 0:00:00] Both players deserved the win here.  Weighted Error Value: White=0.37/Black=0.28 (precise)} 0-1